[Event "*** Titled Tuesday 3|2 Blitz"]
[Site "Chess.com"]
[Date "2016.10.04"]
[Round "7"]
[White "FearlessKing64"]
[Black "minnesotachessmaster"]
[Result "1-0"]
[WhiteElo "2190"]
[BlackElo "1753"]
[TimeControl "180+2"]
[EndTime "18:28:51 PDT"]
[Termination "FearlessKing64 won by resignation"]

1. e4 {[%clk 0:03:01.9]} 1... Nf6 {[%clk 0:02:57.2]} 2. e5 {[%clk 0:03:02]} 2...
Nd5 {[%clk 0:02:58.1]} 3. Nc3 {[%clk 0:03:03.9]} 3... Nxc3 {[%clk 0:02:57.3]} 4.
dxc3 {[%clk 0:03:05.8]} 4... d6 {[%clk 0:02:58.3]} 5. Bf4 {[%clk 0:03:04.7]}
5... Nc6 {[%clk 0:02:56.8]} 6. Bb5 {[%clk 0:03:04.9]} 6... Bd7 {[%clk 0:02:57]}
7. Qe2 {[%clk 0:03:00.3]} 7... a6 {[%clk 0:02:49.1]} 8. Bxc6 {[%clk 0:02:53.9]}
8... Bxc6 {[%clk 0:02:49.4]} 9. Nf3 {[%clk 0:02:55.3]} 9... e6 {[%clk
0:02:39.6]} 10. O-O-O {[%clk 0:02:53.5]} 10... d5 {[%clk 0:02:37.5]} 11. Nd4
{[%clk 0:02:51.5]} 11... Bd7 {[%clk 0:02:38]} 12. Kb1 {[%clk 0:02:51]} 12... c5
{[%clk 0:02:34.8]} 13. Nb3 {[%clk 0:02:41.9]} 13... c4 {[%clk 0:02:34.7]} 14.
Nd4 {[%clk 0:02:42.3]} 14... b5 {[%clk 0:02:34.8]} 15. Qh5 {[%clk 0:02:39]}
15... b4 {[%clk 0:02:30.2]} 16. cxb4 {[%clk 0:02:35.2]} 16... Bxb4 {[%clk
0:02:29.7]} 17. c3 {[%clk 0:02:36.3]} 17... Bc5 {[%clk 0:02:27.5]} 18. Qg4
{[%clk 0:02:30.2]} 18... Kf8 {[%clk 0:02:23.5]} 19. Bg5 {[%clk 0:02:29.4]} 19...
Qb6 {[%clk 0:02:23.1]} 20. h4 {[%clk 0:02:22.1]} 20... Rb8 {[%clk 0:02:17.8]}
21. Rd2 {[%clk 0:02:21.9]} 21... Ba3 {[%clk 0:02:16.9]} 22. Qe2 {[%clk
0:02:06.4]} 22... Rb7 {[%clk 0:02:12.7]} 23. Ka1 {[%clk 0:02:07.1]} 23... Bc5
{[%clk 0:02:08.8]} 24. h5 {[%clk 0:02:07.3]} 24... h6 {[%clk 0:02:08.5]} 25. Be3
{[%clk 0:02:05.9]} 25... Kg8 {[%clk 0:02:03.1]} 26. f4 {[%clk 0:02:07]} 26...
Kh7 {[%clk 0:02:01.2]} 27. g4 {[%clk 0:02:06.4]} 27... Rhb8 {[%clk 0:02:01.2]}
28. g5 {[%clk 0:02:03]} 28... a5 {[%clk 0:01:45.6]} 29. g6+ {[%clk 0:02:00.8]}
29... Kg8 {[%clk 0:01:44.7]} 30. f5 {[%clk 0:01:49.6]} 30... fxg6 {[%clk
0:01:31.3]} 31. fxe6 {[%clk 0:01:48]} 31... Bxe6 {[%clk 0:01:24.8]} 32. hxg6
{[%clk 0:01:47.4]} 32... a4 {[%clk 0:01:23.9]} 33. a3 {[%clk 0:01:45.6]} 33...
Bxd4 {[%clk 0:00:31.9]} 34. Bxd4 {[%clk 0:01:43.8]} 34... Qb3 {[%clk 0:00:33.4]}
35. Rf1 {[%clk 0:01:33]} 1-0

[Event "*** Titled Tuesday 3|2 Blitz"]
[Site "Chess.com"]
[Date "2016.10.04"]
[Round "7"]
[White "Schwarzschidl"]
[Black "michaelq2d5"]
[Result "0-1"]
[WhiteElo "2336"]
[BlackElo "2519"]
[TimeControl "180+2"]
[EndTime "18:29:04 PDT"]
[Termination "michaelq2d5 won by resignation"]

1. e4 {[%clk 0:03:02]} 1... e5 {[%clk 0:03:00.6]} 2. Nf3 {[%clk 0:03:02.7]} 2...
Nc6 {[%clk 0:03:02]} 3. Nc3 {[%clk 0:03:01.7]} 3... Nf6 {[%clk 0:03:02.2]} 4.
Bb5 {[%clk 0:02:57.8]} 4... Bd6 {[%clk 0:03:01.8]} 5. d3 {[%clk 0:02:56]} 5...
h6 {[%clk 0:03:02.2]} 6. O-O {[%clk 0:02:54.9]} 6... O-O {[%clk 0:03:01.5]} 7.
h3 {[%clk 0:02:55.7]} 7... Re8 {[%clk 0:03:02.1]} 8. Nh2 {[%clk 0:02:55.2]} 8...
a6 {[%clk 0:03:03.1]} 9. Ba4 {[%clk 0:02:55.8]} 9... b5 {[%clk 0:02:59.8]} 10.
Bb3 {[%clk 0:02:56.6]} 10... Nd4 {[%clk 0:03:01.5]} 11. f4 {[%clk 0:02:56]}
11... c6 {[%clk 0:02:44.9]} 12. Ng4 {[%clk 0:02:16.7]} 12... Nxb3 {[%clk
0:02:36]} 13. axb3 {[%clk 0:02:01.2]} 13... Bc5+ {[%clk 0:02:28.1]} 14. Kh2
{[%clk 0:01:49.9]} 14... d6 {[%clk 0:02:29.2]} 15. Nxf6+ {[%clk 0:01:24.4]}
15... Qxf6 {[%clk 0:02:28.7]} 16. fxe5 {[%clk 0:01:25.9]} 16... Qxe5+ {[%clk
0:02:17.1]} 17. Bf4 {[%clk 0:01:27]} 17... Qe7 {[%clk 0:02:18.1]} 18. Qf3 {[%clk
0:01:26.5]} 18... Be6 {[%clk 0:02:15.3]} 19. Qg3 {[%clk 0:01:22.1]} 19... Kh8
{[%clk 0:02:15.7]} 20. Ne2 {[%clk 0:01:16.5]} 20... Red8 {[%clk 0:02:10.4]} 21.
Rae1 {[%clk 0:01:04.6]} 21... Kh7 {[%clk 0:01:55.2]} 22. Bd2 {[%clk 0:00:49.3]}
22... d5 {[%clk 0:01:42.1]} 23. d4 {[%clk 0:00:47.9]} 23... Bd6 {[%clk
0:01:43.2]} 24. e5 {[%clk 0:00:49.2]} 24... Bb4 {[%clk 0:01:43.5]} 25. c3 {[%clk
0:00:49.7]} 25... Ba5 {[%clk 0:01:44.6]} 26. b4 {[%clk 0:00:49.8]} 26... Bc7
{[%clk 0:01:43.9]} 27. Rf2 {[%clk 0:00:43.8]} 27... a5 {[%clk 0:01:43.6]} 28.
bxa5 {[%clk 0:00:44.1]} 28... Rxa5 {[%clk 0:01:44.1]} 29. Ref1 {[%clk
0:00:44.8]} 29... Ra2 {[%clk 0:01:45.1]} 30. Nf4 {[%clk 0:00:36.3]} 30... Rf8
{[%clk 0:01:26.8]} 31. Nxe6 {[%clk 0:00:19.6]} 31... Qxe6 {[%clk 0:01:27.4]} 32.
Rf6 {[%clk 0:00:20.7]} 32... gxf6 {[%clk 0:01:24.4]} 33. Qh4 {[%clk 0:00:21.4]}
33... fxe5 {[%clk 0:01:11.5]} 34. Rf6 {[%clk 0:00:22.4]} 34... exd4+ {[%clk
0:01:12.6]} 35. Kh1 {[%clk 0:00:23]} 35... Ra1+ {[%clk 0:01:12]} 36. Be1 {[%clk
0:00:24.4]} 36... Rxe1+ {[%clk 0:01:11.9]} 37. Qxe1 {[%clk 0:00:25.5]} 37...
Qxe1+ {[%clk 0:01:12.7]} 0-1

[Event "*** Titled Tuesday 3|2 Blitz"]
[Site "Chess.com"]
[Date "2016.10.04"]
[Round "7"]
[White "Shivagami"]
[Black "SwiftyMcBishop"]
[Result "1-0"]
[WhiteElo "1960"]
[BlackElo "2072"]
[TimeControl "180+2"]
[EndTime "18:30:04 PDT"]
[Termination "Shivagami won by resignation"]

1. e4 {[%clk 0:03:02]} 1... d5 {[%clk 0:02:57.9]} 2. Nc3 {[%clk 0:03:00]} 2...
dxe4 {[%clk 0:02:53.6]} 3. Nxe4 {[%clk 0:03:00]} 3... Bf5 {[%clk 0:02:53.3]} 4.
Ng3 {[%clk 0:03:00.5]} 4... Bg6 {[%clk 0:02:53.7]} 5. Nf3 {[%clk 0:02:55.7]}
5... e6 {[%clk 0:02:53.5]} 6. d4 {[%clk 0:02:55.3]} 6... Nf6 {[%clk 0:02:54.3]}
7. Bd3 {[%clk 0:02:55]} 7... c5 {[%clk 0:02:49.5]} 8. Bxg6 {[%clk 0:02:39.7]}
8... hxg6 {[%clk 0:02:49.6]} 9. O-O {[%clk 0:02:40.4]} 9... Nc6 {[%clk 0:02:48]}
10. Be3 {[%clk 0:02:29.3]} 10... cxd4 {[%clk 0:02:32.6]} 11. Nxd4 {[%clk
0:02:25.7]} 11... Nxd4 {[%clk 0:02:21.4]} 12. Bxd4 {[%clk 0:02:24.5]} 12... Bd6
{[%clk 0:02:14.1]} 13. Qd3 {[%clk 0:02:19.5]} 13... Qd7 {[%clk 0:01:20.1]} 14.
Rad1 {[%clk 0:02:07.8]} 14... O-O-O {[%clk 0:01:17.9]} 15. Bxa7 {[%clk
0:01:58.1]} 15... Qa4 {[%clk 0:00:45.2]} 16. Qc3+ {[%clk 0:01:42.9]} 16... Qc6
{[%clk 0:00:19.3]} 17. Qxc6+ {[%clk 0:01:37.8]} 17... bxc6 {[%clk 0:00:21.2]}
18. Bb6 {[%clk 0:01:37.7]} 18... Rd7 {[%clk 0:00:22.3]} 19. Rd3 {[%clk
0:01:35.4]} 19... Ng4 {[%clk 0:00:18.1]} 20. h3 {[%clk 0:01:34.1]} 20... Ne5
{[%clk 0:00:18.3]} 21. Rc3 {[%clk 0:01:26.9]} 21... Rb7 {[%clk 0:00:14.1]} 22.
Bd4 {[%clk 0:01:24.2]} 22... Kc7 {[%clk 0:00:07.3]} 23. f4 {[%clk 0:01:23]}
23... Nd7 {[%clk 0:00:05.1]} 24. Bxg7 {[%clk 0:01:19.5]} 24... Rg8 {[%clk
0:00:06.4]} 25. Bd4 {[%clk 0:01:20.2]} 25... Rb4 {[%clk 0:00:04.8]} 26. Ne2
{[%clk 0:01:18.5]} 26... c5 {[%clk 0:00:04.2]} 27. b3 {[%clk 0:01:14.7]} 27...
Kb7 {[%clk 0:00:04.9]} 28. Be3 {[%clk 0:01:14.9]} 28... Re4 {[%clk 0:00:05.7]}
29. Rd1 {[%clk 0:01:14.7]} 29... Kc7 {[%clk 0:00:04.5]} 30. Ng3 {[%clk
0:01:10.8]} 30... Rb4 {[%clk 0:00:05]} 31. a3 {[%clk 0:01:10.7]} 31... Rb6
{[%clk 0:00:03.8]} 32. Ne4 {[%clk 0:01:11.9]} 32... Rc8 {[%clk 0:00:03.8]} 33.
b4 {[%clk 0:01:12.2]} 33... f5 {[%clk 0:00:02.6]} 34. bxc5 {[%clk 0:01:09.7]}
34... fxe4 {[%clk 0:00:02.8]} 35. cxb6+ {[%clk 0:01:10.3]} 35... Kb7 {[%clk
0:00:04]} 36. Rxc8 {[%clk 0:01:09.4]} 36... Kxc8 {[%clk 0:00:05.1]} 37. Rxd6
{[%clk 0:01:10.5]} 37... Nf6 {[%clk 0:00:06.1]} 38. Rxe6 {[%clk 0:01:10.7]}
38... Nd5 {[%clk 0:00:07.4]} 39. Rxe4 {[%clk 0:01:06.8]} 39... Kb7 {[%clk
0:00:07.5]} 40. Re6 {[%clk 0:01:04.6]} 40... Nc3 {[%clk 0:00:08.4]} 41. Re7+
{[%clk 0:01:04.4]} 41... Ka6 {[%clk 0:00:09.7]} 42. b7 {[%clk 0:01:05.7]} 42...
Nd5 {[%clk 0:00:10]} 43. b8=Q {[%clk 0:01:05.5]} 43... Nxe7 {[%clk 0:00:11.5]}
44. Qd6+ {[%clk 0:01:06.1]} 1-0

[Event "*** Titled Tuesday 3|2 Blitz"]
[Site "Chess.com"]
[Date "2016.10.04"]
[Round "7"]
[White "MattyDPerrine"]
[Black "gmshanmeruga"]
[Result "0-1"]
[WhiteElo "2253"]
[BlackElo "2311"]
[TimeControl "180+2"]
[EndTime "18:30:18 PDT"]
[Termination "gmshanmeruga won on time"]

1. d4 {[%clk 0:02:53.8]} 1... f5 {[%clk 0:02:56.5]} 2. Nf3 {[%clk 0:02:53]} 2...
Nf6 {[%clk 0:02:56.1]} 3. c4 {[%clk 0:02:53.4]} 3... e6 {[%clk 0:02:54.2]} 4.
Nc3 {[%clk 0:02:53.8]} 4... c6 {[%clk 0:02:52]} 5. Qc2 {[%clk 0:02:54.1]} 5...
d5 {[%clk 0:02:52.9]} 6. Bg5 {[%clk 0:02:55.3]} 6... Nbd7 {[%clk 0:02:52.1]} 7.
cxd5 {[%clk 0:02:49.6]} 7... cxd5 {[%clk 0:02:39.6]} 8. a3 {[%clk 0:02:45]} 8...
Be7 {[%clk 0:02:37.5]} 9. Nb5 {[%clk 0:02:45]} 9... Qa5+ {[%clk 0:02:32.5]} 10.
Nc3 {[%clk 0:02:44.7]} 10... b5 {[%clk 0:02:28.8]} 11. Nd2 {[%clk 0:02:36.8]}
11... b4 {[%clk 0:02:22.5]} 12. Nb3 {[%clk 0:02:36.5]} 12... Qc7 {[%clk
0:02:19.6]} 13. axb4 {[%clk 0:02:33.6]} 13... Bxb4 {[%clk 0:02:17.2]} 14. Rc1
{[%clk 0:02:15.2]} 14... O-O {[%clk 0:02:09.5]} 15. e3 {[%clk 0:02:12]} 15...
Ne4 {[%clk 0:02:05.5]} 16. Bf4 {[%clk 0:02:12.6]} 16... e5 {[%clk 0:02:03.7]}
17. dxe5 {[%clk 0:02:11.3]} 17... g5 {[%clk 0:02:01.2]} 18. e6 {[%clk
0:01:31.9]} 18... gxf4 {[%clk 0:01:58.4]} 19. exd7 {[%clk 0:01:32.6]} 19... fxe3
{[%clk 0:01:35.3]} 20. fxe3 {[%clk 0:01:07.8]} 20... Bxd7 {[%clk 0:01:33.5]} 21.
Bd3 {[%clk 0:01:06.7]} 21... Qb6 {[%clk 0:01:21.3]} 22. O-O {[%clk 0:00:34.3]}
22... Qxe3+ {[%clk 0:01:20.4]} 23. Kh1 {[%clk 0:00:35.7]} 23... Rac8 {[%clk
0:01:13]} 24. Bxe4 {[%clk 0:00:30.6]} 24... dxe4 {[%clk 0:01:04.2]} 25. Qd1
{[%clk 0:00:23.7]} 25... Be6 {[%clk 0:01:00.8]} 26. Nd5 {[%clk 0:00:18.5]} 26...
Rxc1 {[%clk 0:00:59.2]} 27. Nxc1 {[%clk 0:00:19]} 27... Qd2 {[%clk 0:00:50.2]}
28. Nf4 {[%clk 0:00:16.3]} 28... Bc4 {[%clk 0:00:46.3]} 29. Rg1 {[%clk 0:00:13]}
29... Qxf4 {[%clk 0:00:41.4]} 30. Qd4 {[%clk 0:00:14]} 30... Rc8 {[%clk
0:00:39.5]} 31. b3 {[%clk 0:00:08.6]} 31... Bd6 {[%clk 0:00:35.2]} 32. g3 {[%clk
0:00:05.6]} 32... Qf3+ {[%clk 0:00:34.2]} 33. Rg2 {[%clk 0:00:06.8]} 33... Bf7
{[%clk 0:00:28.9]} 34. Ne2 {[%clk 0:00:03.3]} 34... Bf8 {[%clk 0:00:25.7]} 35.
h4 {[%clk 0:00:02.7]} 35... Rc2 {[%clk 0:00:25.2]} 36. Qd1 {[%clk 0:00:02.1]}
36... Bxb3 {[%clk 0:00:24]} 37. Qb1 {[%clk 0:00:02.5]} 37... Rxe2 {[%clk
0:00:23.2]} 0-1

[Event "*** Titled Tuesday 3|2 Blitz"]
[Site "Chess.com"]
[Date "2016.10.04"]
[Round "7"]
[White "3ptdka"]
[Black "Noukii"]
[Result "0-1"]
[WhiteElo "2078"]
[BlackElo "2592"]
[TimeControl "180+2"]
[EndTime "18:30:50 PDT"]
[Termination "Noukii won by resignation"]

1. d4 {[%clk 0:03:02]} 1... Nf6 {[%clk 0:03:01.9]} 2. c4 {[%clk 0:03:02.1]} 2...
c6 {[%clk 0:03:03.6]} 3. Nc3 {[%clk 0:03:02.8]} 3... d5 {[%clk 0:03:05.3]} 4.
Nf3 {[%clk 0:03:03.9]} 4... dxc4 {[%clk 0:03:06.1]} 5. a4 {[%clk 0:03:03.8]}
5... Bg4 {[%clk 0:03:07.7]} 6. Ne5 {[%clk 0:03:03.9]} 6... Bh5 {[%clk
0:03:04.5]} 7. Nxc4 {[%clk 0:03:02.9]} 7... e6 {[%clk 0:03:05.6]} 8. Qb3 {[%clk
0:02:57]} 8... Na6 {[%clk 0:03:01.3]} 9. e3 {[%clk 0:02:43.5]} 9... Nb4 {[%clk
0:03:00.5]} 10. Be2 {[%clk 0:02:41.2]} 10... Bg6 {[%clk 0:02:59.1]} 11. Na3
{[%clk 0:02:33.9]} 11... Be7 {[%clk 0:02:58.5]} 12. O-O {[%clk 0:02:32.6]} 12...
O-O {[%clk 0:03:00.1]} 13. Na2 {[%clk 0:02:31.4]} 13... a5 {[%clk 0:02:53.4]}
14. Nxb4 {[%clk 0:02:30.2]} 14... axb4 {[%clk 0:02:54.7]} 15. Nc2 {[%clk
0:02:28.2]} 15... Nd5 {[%clk 0:02:44.6]} 16. Bd2 {[%clk 0:02:24.3]} 16... Qb6
{[%clk 0:02:26.4]} 17. Rfc1 {[%clk 0:02:22]} 17... Rfd8 {[%clk 0:02:25.4]} 18.
Bc4 {[%clk 0:02:21.3]} 18... c5 {[%clk 0:02:19.6]} 19. dxc5 {[%clk 0:02:15.5]}
19... Bxc5 {[%clk 0:02:21.5]} 20. Be1 {[%clk 0:02:05.6]} 20... h5 {[%clk
0:02:00]} 21. Rd1 {[%clk 0:02:01.1]} 21... h4 {[%clk 0:01:41.8]} 22. Bxd5 {[%clk
0:01:47.6]} 22... exd5 {[%clk 0:01:41.8]} 23. Nd4 {[%clk 0:01:45]} 23... h3
{[%clk 0:01:41.4]} 24. gxh3 {[%clk 0:01:22.5]} 24... Qf6 {[%clk 0:01:15.5]} 25.
f3 {[%clk 0:01:12.6]} 25... Re8 {[%clk 0:00:58.3]} 26. Bf2 {[%clk 0:00:48]}
26... Re5 {[%clk 0:00:57.1]} 27. Rac1 {[%clk 0:00:46.2]} 27... Bd6 {[%clk
0:00:40.9]} 28. f4 {[%clk 0:00:43.9]} 28... Rh5 {[%clk 0:00:38.6]} 29. Bg3
{[%clk 0:00:41.5]} 29... Be4 {[%clk 0:00:37.8]} 30. Rd2 {[%clk 0:00:38]} 30...
Rxh3 {[%clk 0:00:37.8]} 31. Kf2 {[%clk 0:00:36.1]} 31... g5 {[%clk 0:00:32.3]}
32. Rg1 {[%clk 0:00:34.7]} 32... Kh7 {[%clk 0:00:30.5]} 33. f5 {[%clk
0:00:30.4]} 33... Bxg3+ {[%clk 0:00:24.5]} 34. hxg3 {[%clk 0:00:22.8]} 34... Rc8
{[%clk 0:00:24.4]} 35. g4 {[%clk 0:00:19.9]} 35... Qe5 {[%clk 0:00:20.5]} 36.
Ke1 {[%clk 0:00:20.5]} 36... Rc1+ {[%clk 0:00:18.4]} 37. Rd1 {[%clk 0:00:20.2]}
37... Qh2 {[%clk 0:00:09.9]} 38. Rf1 {[%clk 0:00:17]} 38... Rc4 {[%clk
0:00:11.3]} 39. Rf2 {[%clk 0:00:14]} 39... Qg3 {[%clk 0:00:11.1]} 40. Ne2 {[%clk
0:00:11.7]} 40... Rh1+ {[%clk 0:00:10.4]} 41. Kd2 {[%clk 0:00:11.6]} 41... Qxf2
{[%clk 0:00:11.6]} 42. Rxh1+ {[%clk 0:00:12.3]} 42... Kg7 {[%clk 0:00:13.5]} 43.
Re1 {[%clk 0:00:12.5]} 43... Rc2+ {[%clk 0:00:13.8]} 44. Qxc2 {[%clk 0:00:12.9]}
44... Bxc2 {[%clk 0:00:14.7]} 45. Kxc2 {[%clk 0:00:14.3]} 45... Qxe1 {[%clk
0:00:16]} 0-1

[Event "*** Titled Tuesday 3|2 Blitz"]
[Site "Chess.com"]
[Date "2016.10.04"]
[Round "7"]
[White "rithwik2002"]
[Black "AllStarShark"]
[Result "0-1"]
[WhiteElo "1974"]
[BlackElo "2280"]
[TimeControl "180+2"]
[EndTime "18:31:31 PDT"]
[Termination "AllStarShark won by checkmate"]

1. e4 {[%clk 0:02:58.9]} 1... c6 {[%clk 0:03:00.4]} 2. Nc3 {[%clk 0:02:58.9]}
2... d5 {[%clk 0:03:02.3]} 3. Nf3 {[%clk 0:03:00]} 3... Bg4 {[%clk 0:03:02.6]}
4. h3 {[%clk 0:03:01.3]} 4... Bxf3 {[%clk 0:03:03.9]} 5. Qxf3 {[%clk 0:03:03.2]}
5... e6 {[%clk 0:03:05.5]} 6. d3 {[%clk 0:03:03.6]} 6... Nd7 {[%clk 0:03:06]} 7.
Bd2 {[%clk 0:03:03.7]} 7... Ngf6 {[%clk 0:03:07.2]} 8. g4 {[%clk 0:03:01.6]}
8... h6 {[%clk 0:03:07.7]} 9. O-O-O {[%clk 0:02:54]} 9... a6 {[%clk 0:03:00.2]}
10. Qg3 {[%clk 0:02:49.1]} 10... b5 {[%clk 0:03:00.4]} 11. e5 {[%clk 0:02:42]}
11... Ng8 {[%clk 0:02:59.6]} 12. f4 {[%clk 0:02:42.4]} 12... b4 {[%clk
0:02:59.1]} 13. Ne2 {[%clk 0:02:41.7]} 13... a5 {[%clk 0:02:57.1]} 14. f5 {[%clk
0:02:39.8]} 14... a4 {[%clk 0:02:53.4]} 15. fxe6 {[%clk 0:02:32.9]} 15... fxe6
{[%clk 0:02:55.3]} 16. Nf4 {[%clk 0:01:58.9]} 16... b3 {[%clk 0:02:48.1]} 17.
cxb3 {[%clk 0:01:15.2]} 17... axb3 {[%clk 0:02:46.5]} 18. a3 {[%clk 0:01:15.1]}
18... Bxa3 {[%clk 0:02:27]} 19. bxa3 {[%clk 0:01:15.1]} 19... Rxa3 {[%clk
0:02:28.9]} 20. Bc3 {[%clk 0:01:02]} 20... Ra2 {[%clk 0:02:11.4]} 21. Rh2 {[%clk
0:00:27.9]} 21... Qe7 {[%clk 0:02:02.1]} 22. Bb2 {[%clk 0:00:13.6]} 22... Qc5+
{[%clk 0:01:44.2]} 23. Kb1 {[%clk 0:00:13.6]} 23... Kf7 {[%clk 0:01:34.3]} 24.
Rf2 {[%clk 0:00:12.9]} 24... Ngf6 {[%clk 0:01:32.6]} 25. exf6 {[%clk 0:00:13.1]}
25... g5 {[%clk 0:01:20.9]} 26. d4 {[%clk 0:00:12.3]} 26... Qa5 {[%clk
0:01:17.7]} 27. Nd3 {[%clk 0:00:11.7]} 27... Ra8 {[%clk 0:01:17.4]} 28. Kc1
{[%clk 0:00:05.5]} 28... c5 {[%clk 0:00:48.5]} 29. Qd6 {[%clk 0:00:05]} 29...
Qd8 {[%clk 0:00:31.6]} 30. Ne5+ {[%clk 0:00:04.9]} 30... Nxe5 {[%clk 0:00:32.5]}
31. Qxd8 {[%clk 0:00:05.7]} 31... Rxd8 {[%clk 0:00:31]} 32. dxe5 {[%clk
0:00:07.2]} 32... c4 {[%clk 0:00:31.2]} 33. Bd4 {[%clk 0:00:06.7]} 33... Rda8
{[%clk 0:00:26.4]} 34. Rxa2 {[%clk 0:00:06.5]} 34... Rxa2 {[%clk 0:00:28.3]} 35.
Kb1 {[%clk 0:00:07]} 35... Rh2 {[%clk 0:00:24.1]} 36. Bb2 {[%clk 0:00:05.7]}
36... Rc2 {[%clk 0:00:21.6]} 37. Rc1 {[%clk 0:00:03.7]} 37... Rf2 {[%clk
0:00:21.6]} 38. Re1 {[%clk 0:00:04.4]} 38... Rc2 {[%clk 0:00:22.1]} 39. Rd1
{[%clk 0:00:05.6]} 39... c3 {[%clk 0:00:22]} 40. Bxc3 {[%clk 0:00:05.3]} 40...
Rxc3 {[%clk 0:00:23.9]} 41. Rc1 {[%clk 0:00:06.6]} 41... Re3 {[%clk 0:00:23.2]}
42. Rc7+ {[%clk 0:00:07.3]} 42... Kf8 {[%clk 0:00:24.8]} 43. Bb5 {[%clk
0:00:07.7]} 43... Rxe5 {[%clk 0:00:24.7]} 44. Rh7 {[%clk 0:00:05.1]} 44... d4
{[%clk 0:00:24.6]} 45. Bd7 {[%clk 0:00:02.5]} 45... d3 {[%clk 0:00:21.8]} 46. f7
{[%clk 0:00:03.8]} 46... d2 {[%clk 0:00:20.8]} 47. Be8 {[%clk 0:00:03.8]} 47...
d1=Q+ {[%clk 0:00:21.2]} 48. Kb2 {[%clk 0:00:05.7]} 48... Qc2+ {[%clk
0:00:22.5]} 49. Ka3 {[%clk 0:00:06.7]} 49... Qa2+ {[%clk 0:00:22.8]} 50. Kb4
{[%clk 0:00:07.9]} 50... Qa5+ {[%clk 0:00:24]} 51. Kxb3 {[%clk 0:00:07.8]} 51...
Re3+ {[%clk 0:00:25.3]} 52. Kc4 {[%clk 0:00:08.7]} 52... Qd5+ {[%clk 0:00:25.3]}
53. Kb4 {[%clk 0:00:10.1]} 53... Rb3+ {[%clk 0:00:26.3]} 54. Ka4 {[%clk
0:00:09.9]} 54... Qc4+ {[%clk 0:00:27.6]} 55. Ka5 {[%clk 0:00:10.9]} 55... Qb4+
{[%clk 0:00:28.2]} 56. Ka6 {[%clk 0:00:11.9]} 56... Qb6# {[%clk 0:00:30.1]} 0-1

[Event "*** Titled Tuesday 3|2 Blitz"]
[Site "Chess.com"]
[Date "2016.10.04"]
[Round "7"]
[White "theprosecution1"]
[Black "ShimanovAlex"]
[Result "1-0"]
[WhiteElo "2495"]
[BlackElo "2586"]
[TimeControl "180+2"]
[EndTime "18:31:54 PDT"]
[Termination "theprosecution1 won by checkmate"]

1. e4 {[%clk 0:03:02]} 1... c6 {[%clk 0:03:00]} 2. d4 {[%clk 0:03:03]} 2... d5
{[%clk 0:03:01.4]} 3. exd5 {[%clk 0:03:03.7]} 3... cxd5 {[%clk 0:03:02.4]} 4. c4
{[%clk 0:03:05.4]} 4... Nf6 {[%clk 0:03:03]} 5. Nc3 {[%clk 0:03:07.3]} 5... Nc6
{[%clk 0:03:04]} 6. Bg5 {[%clk 0:03:07.2]} 6... dxc4 {[%clk 0:03:03.9]} 7. Bxc4
{[%clk 0:03:07.3]} 7... h6 {[%clk 0:03:05.1]} 8. Be3 {[%clk 0:02:52.4]} 8... e6
{[%clk 0:03:05.7]} 9. Nf3 {[%clk 0:02:53]} 9... Bd6 {[%clk 0:03:06.6]} 10. h3
{[%clk 0:02:52.1]} 10... O-O {[%clk 0:03:07.2]} 11. O-O {[%clk 0:02:52.2]} 11...
Ne7 {[%clk 0:03:08.3]} 12. a3 {[%clk 0:02:52.9]} 12... b6 {[%clk 0:03:09.2]} 13.
Re1 {[%clk 0:02:53.2]} 13... Bb7 {[%clk 0:03:10.3]} 14. Qe2 {[%clk 0:02:50.1]}
14... Ned5 {[%clk 0:03:07.3]} 15. Rad1 {[%clk 0:02:46.5]} 15... Rc8 {[%clk
0:03:05.9]} 16. Ba2 {[%clk 0:02:43.9]} 16... Nxc3 {[%clk 0:03:05.7]} 17. bxc3
{[%clk 0:02:43.8]} 17... Rxc3 {[%clk 0:03:07.3]} 18. Ne5 {[%clk 0:02:41.1]}
18... Bd5 {[%clk 0:03:04.1]} 19. Bb1 {[%clk 0:02:40]} 19... Bxa3 {[%clk
0:02:58.5]} 20. Bd2 {[%clk 0:02:29.4]} 20... Rb3 {[%clk 0:02:26.3]} 21. Bc2
{[%clk 0:02:26.8]} 21... Rb2 {[%clk 0:02:27.3]} 22. Qd3 {[%clk 0:02:28]} 22...
Rxc2 {[%clk 0:02:23.4]} 23. Qxc2 {[%clk 0:02:29.9]} 23... Qa8 {[%clk 0:02:24.3]}
24. f3 {[%clk 0:02:26.1]} 24... Rc8 {[%clk 0:02:25.1]} 25. Qd3 {[%clk
0:02:18.8]} 25... Qb7 {[%clk 0:02:13.4]} 26. Ra1 {[%clk 0:02:19.8]} 26... Bd6
{[%clk 0:02:14.4]} 27. h4 {[%clk 0:02:05.8]} 27... b5 {[%clk 0:02:11.6]} 28.
Reb1 {[%clk 0:01:48.2]} 28... b4 {[%clk 0:02:11.4]} 29. Qa6 {[%clk 0:01:36.5]}
29... Qxa6 {[%clk 0:01:40.7]} 30. Rxa6 {[%clk 0:01:38.4]} 30... Bf8 {[%clk
0:01:40.7]} 31. Rxa7 {[%clk 0:01:35.7]} 31... b3 {[%clk 0:01:41.4]} 32. Nd3
{[%clk 0:01:19.5]} 32... Bd6 {[%clk 0:01:29.5]} 33. Bb4 {[%clk 0:01:12.1]} 33...
Bg3 {[%clk 0:01:29.2]} 34. Be1 {[%clk 0:00:50]} 34... Bb8 {[%clk 0:01:19.6]} 35.
Ra3 {[%clk 0:00:42.6]} 35... Bd6 {[%clk 0:01:19.5]} 36. Bb4 {[%clk 0:00:42.9]}
36... Bg3 {[%clk 0:01:11.6]} 37. Be1 {[%clk 0:00:43.6]} 37... Bxe1 {[%clk
0:00:54.8]} 38. Rxe1 {[%clk 0:00:45.5]} 38... g5 {[%clk 0:00:50.6]} 39. hxg5
{[%clk 0:00:46]} 39... hxg5 {[%clk 0:00:52.5]} 40. Nc5 {[%clk 0:00:46.7]} 40...
Rb8 {[%clk 0:00:52.6]} 41. Rb1 {[%clk 0:00:46.5]} 41... b2 {[%clk 0:00:53.8]}
42. Nd3 {[%clk 0:00:43.1]} 42... Rc8 {[%clk 0:00:53.7]} 43. Rxb2 {[%clk
0:00:42.6]} 43... Rc4 {[%clk 0:00:54.4]} 44. Rb4 {[%clk 0:00:42]} 44... Rc2
{[%clk 0:00:55.4]} 45. Ra7 {[%clk 0:00:38.1]} 45... g4 {[%clk 0:00:56]} 46. Ne5
{[%clk 0:00:37.4]} 46... g3 {[%clk 0:00:55.8]} 47. Rb1 {[%clk 0:00:30]} 47...
Ba2 {[%clk 0:00:15.9]} 48. Rb8+ {[%clk 0:00:28.1]} 48... Kg7 {[%clk 0:00:16.7]}
49. Rxf7+ {[%clk 0:00:29.4]} 49... Kh6 {[%clk 0:00:18.1]} 50. Kf1 {[%clk
0:00:21]} 50... Nd5 {[%clk 0:00:16.4]} 51. Ng4+ {[%clk 0:00:20.4]} 51... Kg6
{[%clk 0:00:16.3]} 52. Ra7 {[%clk 0:00:19]} 52... Bc4+ {[%clk 0:00:16.5]} 53.
Ke1 {[%clk 0:00:19.7]} 53... Nc3 {[%clk 0:00:04.5]} 54. Rg8+ {[%clk 0:00:19.3]}
54... Kf5 {[%clk 0:00:04.6]} 55. Ne3+ {[%clk 0:00:19.5]} 55... Kf4 {[%clk
0:00:05.1]} 56. Nxc2 {[%clk 0:00:21.4]} 56... Nd5 {[%clk 0:00:05.8]} 57. Rg4+
{[%clk 0:00:19.8]} 57... Kf5 {[%clk 0:00:06.5]} 58. Rf7+ {[%clk 0:00:19.9]}
58... Nf6 {[%clk 0:00:02.2]} 59. Ne3# {[%clk 0:00:21.5]} 1-0